[Event "Titled Tuesday Blitz February 22 Late 2022"]
[White "Papasimakopoulos, Alexandros"]
[Black "Vusatiuk, Vladimir"]
[WhiteFideId "4244125"]
[BlackFideId "14118610"]
[WhiteElo "2340"]
[BlackElo "2157"]
[Result "1-0"]
[Round "04"]
[TimeControl "180+1"]
[Date "2022.02.23"]
[WhiteClock "0:00:05"]
[BlackClock "0:00:07"]

1. d4 {[%clk 0:01:43]}  Nf6 {[%clk 0:02:59]} 2. c4 {[%clk 0:01:44]}  e6 {[%clk 0:02:59]} 3. Nc3 {[%clk 0:01:44]}  Bb4 {[%clk 0:02:59]} 4. Qc2 {[%clk 0:01:45]}  O-O {[%clk 0:02:58]} 5. a3 {[%clk 0:01:45]}  Bxc3+ {[%clk 0:02:58]} 6. Qxc3 {[%clk 0:01:46]}  b6 {[%clk 0:02:58]} 7. Bg5 {[%clk 0:01:45]}  Bb7 {[%clk 0:02:57]} 8. f3 {[%clk 0:01:45]}  d5 {[%clk 0:02:52]} 9. e3 {[%clk 0:01:45]}  Nbd7 {[%clk 0:02:39]} 10. cxd5 {[%clk 0:01:46]}  exd5 {[%clk 0:02:29]} 11. Bd3 {[%clk 0:01:45]}  h6 {[%clk 0:02:29]} 12. Bh4 {[%clk 0:01:45]}  Re8 {[%clk 0:02:27]} 13. Ne2 {[%clk 0:01:45]}  c5 {[%clk 0:02:19]} 14. O-O {[%clk 0:01:44]}  Qe7 {[%clk 0:02:08]} 15. Bf2 {[%clk 0:01:43]}  Rac8 {[%clk 0:02:06]} 16. Qd2 {[%clk 0:01:43]}  Nf8 {[%clk 0:01:54]} 17. Ng3 {[%clk 0:01:42]}  Ne6 {[%clk 0:01:38]} 18. Nf5 {[%clk 0:01:41]}  Qd7 {[%clk 0:01:36]} 19. Bg3 {[%clk 0:01:42]}  Red8 {[%clk 0:01:10]} 20. Be5 {[%clk 0:01:31]}  Ne8 {[%clk 0:01:03]} 21. Rad1 {[%clk 0:01:16]}  Bc6 {[%clk 0:00:40]} 22. Rfe1 {[%clk 0:01:14]}  Bb5 {[%clk 0:00:39]} 23. Bb1 {[%clk 0:01:14]}  f6 {[%clk 0:00:32]} 24. Bg3 {[%clk 0:01:11]}  Qf7 {[%clk 0:00:22]} 25. Nh4 {[%clk 0:00:46]}  Nf8 {[%clk 0:00:20]} 26. Ba2 {[%clk 0:00:37]}  cxd4 {[%clk 0:00:19]} 27. exd4 {[%clk 0:00:37]}  Bc4 {[%clk 0:00:19]} 28. Bb1 {[%clk 0:00:38]}  Nd6 {[%clk 0:00:19]} 29. Bxd6 {[%clk 0:00:31]}  Rxd6 {[%clk 0:00:20]} 30. Nf5 {[%clk 0:00:31]}  Re6 {[%clk 0:00:20]} 31. Rxe6 {[%clk 0:00:28]}  Nxe6 {[%clk 0:00:20]} 32. Nd6 {[%clk 0:00:29]}  Qc7 {[%clk 0:00:19]} 33. Nxc8 {[%clk 0:00:29]}  Qxc8 {[%clk 0:00:20]} 34. Bf5 {[%clk 0:00:29]}  Qc6 {[%clk 0:00:17]} 35. Qe3 {[%clk 0:00:26]}  Ng5 {[%clk 0:00:13]} 36. h4 {[%clk 0:00:23]}  Nf7 {[%clk 0:00:12]} 37. Qe6 {[%clk 0:00:22]}  Qxe6 {[%clk 0:00:08]} 38. Bxe6 {[%clk 0:00:23]}  Kf8 {[%clk 0:00:09]} 39. Bxf7 {[%clk 0:00:23]}  Kxf7 {[%clk 0:00:10]} 40. h5 {[%clk 0:00:22]}  f5 {[%clk 0:00:07]} 41. Kf2 {[%clk 0:00:19]}  Kf6 {[%clk 0:00:07]} 42. g4 {[%clk 0:00:15]}  f4 {[%clk 0:00:07]} 43. Re1 {[%clk 0:00:15]}  a5 {[%clk 0:00:05]} 44. Re5 {[%clk 0:00:15]}  a4 {[%clk 0:00:06]} 45. Rf5+ {[%clk 0:00:15]}  Ke6 {[%clk 0:00:06]} 46. Rxf4 {[%clk 0:00:16]}  Ke7 {[%clk 0:00:04]} 47. Ke3 {[%clk 0:00:15]}  Bb3 {[%clk 0:00:04]} 48. Rf5 {[%clk 0:00:15]}  Ke6 {[%clk 0:00:04]} 49. Re5+ {[%clk 0:00:16]}  Kf7 {[%clk 0:00:04]} 50. Kf4 {[%clk 0:00:17]}  b5 {[%clk 0:00:04]} 51. g5 {[%clk 0:00:16]}  Bc4 {[%clk 0:00:03]} 52. gxh6 {[%clk 0:00:16]}  gxh6 {[%clk 0:00:04]} 53. Rf5+ {[%clk 0:00:14]}  Ke6 {[%clk 0:00:05]} 54. Rf8 {[%clk 0:00:14]}  Ke7 {[%clk 0:00:05]} 55. Rh8 {[%clk 0:00:14]}  Kf6 {[%clk 0:00:06]} 56. Rxh6+ {[%clk 0:00:14]}  Kg7 {[%clk 0:00:07]} 57. Rc6 {[%clk 0:00:15]}  b4 {[%clk 0:00:06]} 58. axb4 {[%clk 0:00:15]}  Bb3 {[%clk 0:00:07]} 59. Kg5 {[%clk 0:00:13]}  Kf7 {[%clk 0:00:07]} 60. Rc7+ {[%clk 0:00:14]}  Ke6 {[%clk 0:00:07]} 61. h6 {[%clk 0:00:14]}  a3 {[%clk 0:00:08]} 62. Ra7 {[%clk 0:00:15]}  axb2 {[%clk 0:00:08]} 63. h7 {[%clk 0:00:15]}  b1=Q {[%clk 0:00:08]} 64. Ra6+ {[%clk 0:00:14]}  Kf7 {[%clk 0:00:04]} 65. h8=Q {[%clk 0:00:10]}  Qg1+ {[%clk 0:00:04]} 66. Kf4 {[%clk 0:00:09]}  Qc1+ {[%clk 0:00:03]} 67. Ke5 {[%clk 0:00:07]}  Qg5+ {[%clk 0:00:03]} 68. Kd6 {[%clk 0:00:06]}  Qg6+ {[%clk 0:00:04]} 69. Kd7 {[%clk 0:00:03]}  Qxa6 {[%clk 0:00:04]} 70. Qh7+ {[%clk 0:00:03]}  Kf8 {[%clk 0:00:04]} 71. Qe7+ {[%clk 0:00:01]}  Kg8 {[%clk 0:00:04]} 72. Qe6+ {[%clk 0:00:01]}  Qxe6+ {[%clk 0:00:04]} 73. Kxe6 {[%clk 0:00:02]}  Bc4 {[%clk 0:00:05]} 74. Kd6 {[%clk 0:00:02]}  Kf7 {[%clk 0:00:05]} 75. Kc6 {[%clk 0:00:02]}  Ke6 {[%clk 0:00:06]} 76. b5 {[%clk 0:00:03]}  Kf5 {[%clk 0:00:05]} 77. b6 {[%clk 0:00:03]}  Ba6 {[%clk 0:00:05]} 78. Kc5 {[%clk 0:00:04]}  Bb7 {[%clk 0:00:05]} 79. Kd6 {[%clk 0:00:03]}  Kf4 {[%clk 0:00:06]} 80. Kc7 {[%clk 0:00:04]}  Ba6 {[%clk 0:00:07]} 81. b7 {[%clk 0:00:01]}  Bxb7 {[%clk 0:00:07]} 82. Kxb7 {[%clk 0:00:01]}  Kxf3 {[%clk 0:00:08]} 83. Kc6 {[%clk 0:00:02]}  Ke4 {[%clk 0:00:02]} 84. Kc5 {[%clk 0:00:02]}  Kf5 {[%clk 0:00:03]} 85. Kxd5 {[%clk 0:00:02]}  Kf6 {[%clk 0:00:04]} 86. Kd6 {[%clk 0:00:02]}  Kf7 {[%clk 0:00:04]} 87. Kd7 {[%clk 0:00:03]}  Kf6 {[%clk 0:00:04]} 88. d5 {[%clk 0:00:03]}  Ke5 {[%clk 0:00:05]} 89. d6 {[%clk 0:00:04]}  Kd5 {[%clk 0:00:06]} 90. Ke7 {[%clk 0:00:04]}  Kc5 {[%clk 0:00:07]} 91. d7 {[%clk 0:00:05]} 1-0


[Site "https://www.chess.com"]

[Event "Titled Tuesday Blitz February 22 Late 2022"]
[White "Pichot, Alan"]
[Black "Sadhwani, Raunak"]
[WhiteFideId "110973"]
[BlackFideId "35093487"]
[WhiteElo "2543"]
[BlackElo "2616"]
[Result "0-1"]
[Round "04"]
[TimeControl "180+1"]
[Date "2022.02.22"]
[WhiteClock "0:00:02"]
[BlackClock "0:00:18"]

1. e4 {[%clk 0:03:00]}  e5 {[%clk 0:03:00]} 2. Nf3 {[%clk 0:03:00]}  Nc6 {[%clk 0:03:01]} 3. Bb5 {[%clk 0:02:58]}  Nge7 {[%clk 0:03:01]} 4. O-O {[%clk 0:02:54]}  Ng6 {[%clk 0:03:01]} 5. c3 {[%clk 0:02:53]}  a6 {[%clk 0:03:02]} 6. Bc4 {[%clk 0:02:51]}  Be7 {[%clk 0:03:01]} 7. d4 {[%clk 0:02:49]}  d6 {[%clk 0:03:01]} 8. h3 {[%clk 0:02:49]}  O-O {[%clk 0:03:01]} 9. Re1 {[%clk 0:02:48]}  Kh8 {[%clk 0:03:02]} 10. Nbd2 {[%clk 0:02:47]}  f5 {[%clk 0:03:02]} 11. exf5 {[%clk 0:02:37]}  Bxf5 {[%clk 0:03:03]} 12. Nf1 {[%clk 0:02:37]}  d5 {[%clk 0:02:56]} 13. Bb3 {[%clk 0:02:36]}  e4 {[%clk 0:02:55]} 14. N3h2 {[%clk 0:02:34]}  Nh4 {[%clk 0:02:49]} 15. Ne3 {[%clk 0:02:31]}  Be6 {[%clk 0:02:47]} 16. c4 {[%clk 0:01:40]}  dxc4 {[%clk 0:02:29]} 17. Bxc4 {[%clk 0:01:40]}  Bxc4 {[%clk 0:02:29]} 18. Nxc4 {[%clk 0:01:40]}  Nxd4 {[%clk 0:02:30]} 19. Be3 {[%clk 0:01:38]}  Ndf5 {[%clk 0:01:44]} 20. Qc2 {[%clk 0:01:33]}  Qd3 {[%clk 0:01:42]} 21. Qxd3 {[%clk 0:01:17]}  exd3 {[%clk 0:01:43]} 22. Rad1 {[%clk 0:01:18]}  Rad8 {[%clk 0:01:41]} 23. Bf4 {[%clk 0:01:09]}  c5 {[%clk 0:01:18]} 24. Ne5 {[%clk 0:00:56]}  Ng6 {[%clk 0:01:07]} 25. Nxg6+ {[%clk 0:00:26]}  hxg6 {[%clk 0:01:08]} 26. Ng4 {[%clk 0:00:27]}  Bf6 {[%clk 0:00:46]} 27. b3 {[%clk 0:00:26]}  Bc3 {[%clk 0:00:42]} 28. Re4 {[%clk 0:00:25]}  b5 {[%clk 0:00:29]} 29. Be5 {[%clk 0:00:23]}  Rfe8 {[%clk 0:00:23]} 30. f3 {[%clk 0:00:20]}  Ba5 {[%clk 0:00:23]} 31. Nf2 {[%clk 0:00:17]}  c4 {[%clk 0:00:22]} 32. bxc4 {[%clk 0:00:06]}  bxc4 {[%clk 0:00:22]} 33. Rc1 {[%clk 0:00:02]}  d2 {[%clk 0:00:18]} 34. Rcxc4 {[%clk 0:00:02]}  Bb6 {[%clk 0:00:18]} 0-1


[Site "https://www.chess.com"]

[Event "Titled Tuesday Blitz February 22 Late 2022"]
[White "Piesik, Piotr"]
[Black "Mirzoev, Azer"]
[WhiteFideId "1136194"]
[BlackFideId "13400304"]
[WhiteElo "2232"]
[BlackElo "2525"]
[Result "1/2-1/2"]
[Round "04"]
[TimeControl "180+1"]
[Date "2022.02.23"]
[WhiteClock "0:01:19"]
[BlackClock "0:00:06"]

1. Nf3 {[%clk 0:03:00]}  c5 {[%clk 0:02:59]} 2. g3 {[%clk 0:03:00]}  b5 {[%clk 0:02:59]} 3. Bg2 {[%clk 0:03:01]}  Bb7 {[%clk 0:02:59]} 4. O-O {[%clk 0:03:02]}  e6 {[%clk 0:03:00]} 5. d3 {[%clk 0:03:02]}  d5 {[%clk 0:02:58]} 6. Nbd2 {[%clk 0:03:01]}  Nf6 {[%clk 0:02:58]} 7. e4 {[%clk 0:03:02]}  dxe4 {[%clk 0:02:58]} 8. Ng5 {[%clk 0:03:02]}  Nc6 {[%clk 0:02:51]} 9. Ngxe4 {[%clk 0:03:01]}  Nxe4 {[%clk 0:02:48]} 10. Nxe4 {[%clk 0:03:02]}  Be7 {[%clk 0:02:46]} 11. Be3 {[%clk 0:03:02]}  Qb6 {[%clk 0:02:41]} 12. a3 {[%clk 0:03:02]}  a5 {[%clk 0:02:38]} 13. b4 {[%clk 0:02:59]}  axb4 {[%clk 0:02:37]} 14. axb4 {[%clk 0:03:00]}  Nxb4 {[%clk 0:02:36]} 15. Rxa8+ {[%clk 0:02:59]}  Bxa8 {[%clk 0:02:36]} 16. Qa1 {[%clk 0:02:49]}  O-O {[%clk 0:02:36]} 17. Qc3 {[%clk 0:02:42]}  Nd5 {[%clk 0:02:24]} 18. Bxc5 {[%clk 0:02:41]}  Nxc3 {[%clk 0:01:52]} 19. Bxb6 {[%clk 0:02:41]}  Ne2+ {[%clk 0:01:38]} 20. Kh1 {[%clk 0:02:40]}  Rc8 {[%clk 0:01:37]} 21. Rb1 {[%clk 0:02:18]}  b4 {[%clk 0:01:29]} 22. Ba5 {[%clk 0:02:09]}  Rxc2 {[%clk 0:01:21]} 23. Nf6+ {[%clk 0:02:08]}  gxf6 {[%clk 0:01:14]} 24. Bxa8 {[%clk 0:02:09]}  Nc3 {[%clk 0:01:12]} 25. Rb3 {[%clk 0:02:08]}  Rxf2 {[%clk 0:01:09]} 26. Bxb4 {[%clk 0:02:08]}  Bxb4 {[%clk 0:01:08]} 27. Rxb4 {[%clk 0:02:09]}  Rd2 {[%clk 0:01:00]} 28. Rd4 {[%clk 0:02:04]}  Nd1 {[%clk 0:00:51]} 29. Kg1 {[%clk 0:02:00]}  Nf2 {[%clk 0:00:43]} 30. Rd8+ {[%clk 0:01:59]}  Kg7 {[%clk 0:00:42]} 31. d4 {[%clk 0:02:00]}  Ng4 {[%clk 0:00:39]} 32. h3 {[%clk 0:01:57]}  Ne3 {[%clk 0:00:39]} 33. Bf3 {[%clk 0:01:51]}  Nf5 {[%clk 0:00:37]} 34. d5 {[%clk 0:01:51]}  Nxg3 {[%clk 0:00:29]} 35. d6 {[%clk 0:01:48]}  Nf5 {[%clk 0:00:27]} 36. d7 {[%clk 0:01:48]}  Ne7 {[%clk 0:00:16]} 37. Bb7 {[%clk 0:01:38]}  f5 {[%clk 0:00:13]} 38. Bc8 {[%clk 0:01:30]}  Kf6 {[%clk 0:00:11]} 39. Re8 {[%clk 0:01:26]}  Nc6 {[%clk 0:00:10]} 40. Bb7 {[%clk 0:01:26]}  Rxd7 {[%clk 0:00:09]} 41. Bxc6 {[%clk 0:01:26]}  Rd2 {[%clk 0:00:08]} 42. Rh8 {[%clk 0:01:23]}  Kg7 {[%clk 0:00:08]} 43. Ra8 {[%clk 0:01:22]}  Rc2 {[%clk 0:00:07]} 44. Bg2 {[%clk 0:01:21]}  Kf6 {[%clk 0:00:06]} 45. Rh8 {[%clk 0:01:20]}  Kg7 {[%clk 0:00:06]} 46. Ra8 {[%clk 0:01:20]}  Kf6 {[%clk 0:00:06]} 47. Rh8 {[%clk 0:01:19]}  Kg7 {[%clk 0:00:06]} 48. Ra8 {[%clk 0:01:19]} 1/2-1/2


[Site "https://www.chess.com"]

[Event "Titled Tuesday Blitz February 22 Late 2022"]
[White "Pinheiro, Iung Alicio de O."]
[Black "Gaisinsky, Adam"]
[WhiteFideId "2104350"]
[BlackFideId "2620561"]
[WhiteElo "2581"]
[BlackElo "1965"]
[Result "1-0"]
[Round "04"]
[TimeControl "180+1"]
[Date "2022.02.23"]
[WhiteClock "0:00:21"]
[BlackClock "0:00:01"]

1. e4 {[%clk 0:02:59]}  e5 {[%clk 0:02:59]} 2. Bc4 {[%clk 0:02:58]}  Nf6 {[%clk 0:02:59]} 3. d3 {[%clk 0:02:58]}  Nc6 {[%clk 0:02:59]} 4. Nc3 {[%clk 0:02:58]}  Bc5 {[%clk 0:02:59]} 5. f4 {[%clk 0:02:57]}  d6 {[%clk 0:03:00]} 6. Nf3 {[%clk 0:02:57]}  exf4 {[%clk 0:03:01]} 7. Bxf4 {[%clk 0:02:57]}  O-O {[%clk 0:03:02]} 8. Qd2 {[%clk 0:02:50]}  Be6 {[%clk 0:03:00]} 9. Bb3 {[%clk 0:02:04]}  Bb4 {[%clk 0:02:42]} 10. Bg5 {[%clk 0:02:02]}  h6 {[%clk 0:02:40]} 11. Bh4 {[%clk 0:02:02]}  a5 {[%clk 0:01:51]} 12. O-O {[%clk 0:01:44]}  Bxb3 {[%clk 0:01:05]} 13. axb3 {[%clk 0:01:42]}  Re8 {[%clk 0:01:05]} 14. Qc1 {[%clk 0:01:23]}  Re6 {[%clk 0:00:55]} 15. Nd5 {[%clk 0:01:21]}  Bc5+ {[%clk 0:00:52]} 16. Kh1 {[%clk 0:01:20]}  Nd4 {[%clk 0:00:23]} 17. Nxf6+ {[%clk 0:01:02]}  gxf6 {[%clk 0:00:19]} 18. Nxd4 {[%clk 0:00:49]}  Bxd4 {[%clk 0:00:19]} 19. Qxh6 {[%clk 0:00:49]}  Qf8 {[%clk 0:00:15]} 20. Qc1 {[%clk 0:00:40]}  Be5 {[%clk 0:00:07]} 21. c3 {[%clk 0:00:38]}  c5 {[%clk 0:00:06]} 22. Rf5 {[%clk 0:00:38]}  Qg7 {[%clk 0:00:03]} 23. Qf1 {[%clk 0:00:32]}  Qh7 {[%clk 0:00:03]} 24. Qf2 {[%clk 0:00:30]}  Kg7 {[%clk 0:00:03]} 25. Rf1 {[%clk 0:00:22]}  Rh8 {[%clk 0:00:02]} 26. g3 {[%clk 0:00:22]}  Qh6 {[%clk 0:00:01]} 27. d4 {[%clk 0:00:21]}  cxd4 {[%clk 0:00:01]} 28. cxd4 {[%clk 0:00:22]}  Bxg3 {[%clk 0:00:01]} 29. Bxg3 {[%clk 0:00:22]}  Rxe4 {[%clk 0:00:02]} 30. Rxf6 {[%clk 0:00:22]}  Qh5 {[%clk 0:00:02]} 31. Rxf7+ {[%clk 0:00:22]}  Kg6 {[%clk 0:00:01]} 32. Qf6# {[%clk 0:00:21]} 1-0


[Site "https://www.chess.com"]

[Event "Titled Tuesday Blitz February 22 Late 2022"]
[White "Rorrer, Grayson"]
[Black "Petrovic, Aleksa"]
[WhiteFideId "30944996"]
[BlackFideId "967629"]
[WhiteElo "2122"]
[BlackElo "2139"]
[Result "1-0"]
[Round "04"]
[TimeControl "180+1"]
[Date "2022.02.23"]
[WhiteClock "0:00:16"]
[BlackClock "0:00:01"]

1. e4 {[%clk 0:03:00]}  c5 {[%clk 0:02:58]} 2. Nf3 {[%clk 0:03:00]}  e6 {[%clk 0:02:57]} 3. d4 {[%clk 0:03:00]}  cxd4 {[%clk 0:02:57]} 4. Nxd4 {[%clk 0:03:01]}  a6 {[%clk 0:02:57]} 5. c4 {[%clk 0:03:01]}  Nf6 {[%clk 0:02:56]} 6. Nc3 {[%clk 0:03:02]}  Qc7 {[%clk 0:02:57]} 7. Be2 {[%clk 0:02:57]}  b6 {[%clk 0:02:56]} 8. O-O {[%clk 0:02:55]}  Bb7 {[%clk 0:02:56]} 9. f3 {[%clk 0:02:54]}  Be7 {[%clk 0:02:39]} 10. Be3 {[%clk 0:02:54]}  O-O {[%clk 0:02:37]} 11. Rc1 {[%clk 0:02:54]}  d6 {[%clk 0:02:36]} 12. a3 {[%clk 0:02:54]}  Nbd7 {[%clk 0:02:36]} 13. Qd2 {[%clk 0:02:55]}  Rfe8 {[%clk 0:02:35]} 14. Rfd1 {[%clk 0:02:55]}  Rac8 {[%clk 0:02:34]} 15. b4 {[%clk 0:02:55]}  Qb8 {[%clk 0:02:31]} 16. Bf2 {[%clk 0:02:55]}  Bd8 {[%clk 0:02:28]} 17. h3 {[%clk 0:02:55]}  Bc7 {[%clk 0:02:27]} 18. Bg3 {[%clk 0:02:56]}  Ne5 {[%clk 0:02:04]} 19. Bxe5 {[%clk 0:02:52]}  dxe5 {[%clk 0:02:04]} 20. Nb3 {[%clk 0:02:52]}  Nh5 {[%clk 0:01:54]} 21. c5 {[%clk 0:02:51]}  Nf4 {[%clk 0:01:47]} 22. Bf1 {[%clk 0:02:51]}  Red8 {[%clk 0:01:18]} 23. Qe3 {[%clk 0:02:50]}  Rxd1 {[%clk 0:01:19]} 24. Rxd1 {[%clk 0:02:51]}  bxc5 {[%clk 0:01:15]} 25. Nxc5 {[%clk 0:02:51]}  Bb6 {[%clk 0:01:15]} 26. N3a4 {[%clk 0:02:47]}  Ba7 {[%clk 0:01:10]} 27. Kh1 {[%clk 0:02:44]}  Bc6 {[%clk 0:00:54]} 28. Qe1 {[%clk 0:02:33]}  a5 {[%clk 0:00:45]} 29. bxa5 {[%clk 0:02:09]}  Bxa4 {[%clk 0:00:44]} 30. Nxa4 {[%clk 0:02:10]}  Qb3 {[%clk 0:00:44]} 31. Nb6 {[%clk 0:01:58]}  Bxb6 {[%clk 0:00:41]} 32. axb6 {[%clk 0:01:52]}  Qxb6 {[%clk 0:00:42]} 33. a4 {[%clk 0:01:50]}  Ra8 {[%clk 0:00:32]} 34. a5 {[%clk 0:01:45]}  Qb2 {[%clk 0:00:22]} 35. a6 {[%clk 0:01:42]}  h5 {[%clk 0:00:21]} 36. Qd2 {[%clk 0:01:30]}  Qb3 {[%clk 0:00:15]} 37. Rc1 {[%clk 0:01:11]}  h4 {[%clk 0:00:15]} 38. Qc3 {[%clk 0:01:09]}  Qb6 {[%clk 0:00:12]} 39. Qc6 {[%clk 0:01:07]}  Qe3 {[%clk 0:00:06]} 40. Qxa8+ {[%clk 0:00:57]}  Kh7 {[%clk 0:00:06]} 41. Qc6 {[%clk 0:00:57]}  Nh5 {[%clk 0:00:05]} 42. Qc2 {[%clk 0:00:17]}  Ng3+ {[%clk 0:00:05]} 43. Kh2 {[%clk 0:00:18]}  Qf4 {[%clk 0:00:04]} 44. a7 {[%clk 0:00:16]}  Nxe4+ {[%clk 0:00:03]} 45. Kh1 {[%clk 0:00:15]}  f5 {[%clk 0:00:01]} 46. fxe4 {[%clk 0:00:15]}  fxe4 {[%clk 0:00:01]} 47. a8=Q {[%clk 0:00:16]} 1-0


[Site "https://www.chess.com"]

[Event "Titled Tuesday Blitz February 22 Late 2022"]
[White "Rosen, Eric"]
[Black "Ponkratov, Pavel"]
[WhiteFideId "2032562"]
[BlackFideId "4157800"]
[WhiteElo "2362"]
[BlackElo "2487"]
[Result "0-1"]
[Round "04"]
[TimeControl "180+1"]
[Date "2022.02.22"]
[WhiteClock "0:00:01"]
[BlackClock "0:01:42"]

1. d4 {[%clk 0:02:55]}  Nf6 {[%clk 0:03:00]} 2. Bf4 {[%clk 0:02:53]}  c5 {[%clk 0:02:59]} 3. e3 {[%clk 0:02:53]}  g6 {[%clk 0:02:57]} 4. Nf3 {[%clk 0:02:52]}  Bg7 {[%clk 0:02:58]} 5. Nbd2 {[%clk 0:02:52]}  O-O {[%clk 0:02:58]} 6. h3 {[%clk 0:02:52]}  cxd4 {[%clk 0:02:57]} 7. exd4 {[%clk 0:02:52]}  Nc6 {[%clk 0:02:58]} 8. c3 {[%clk 0:02:51]}  d6 {[%clk 0:02:58]} 9. Be2 {[%clk 0:02:47]}  e5 {[%clk 0:02:58]} 10. dxe5 {[%clk 0:02:42]}  dxe5 {[%clk 0:02:57]} 11. Nxe5 {[%clk 0:02:27]}  Nd5 {[%clk 0:02:51]} 12. Nxc6 {[%clk 0:02:27]}  bxc6 {[%clk 0:02:51]} 13. Bg3 {[%clk 0:02:25]}  Re8 {[%clk 0:02:38]} 14. O-O {[%clk 0:02:12]}  Bxc3 {[%clk 0:02:38]} 15. Nc4 {[%clk 0:01:59]}  Ba6 {[%clk 0:02:37]} 16. Rb1 {[%clk 0:01:21]}  Bg7 {[%clk 0:02:34]} 17. Ne3 {[%clk 0:00:43]}  Nxe3 {[%clk 0:02:07]} 18. Qxd8 {[%clk 0:00:14]}  Raxd8 {[%clk 0:02:06]} 19. Bxa6 {[%clk 0:00:15]}  Nxf1 {[%clk 0:02:06]} 20. Kxf1 {[%clk 0:00:15]}  Rd2 {[%clk 0:02:05]} 21. Bc4 {[%clk 0:00:08]}  Bd4 {[%clk 0:01:53]} 22. b4 {[%clk 0:00:04]}  Kg7 {[%clk 0:01:53]} 23. Kg1 {[%clk 0:00:02]}  f5 {[%clk 0:01:50]} 24. Rf1 {[%clk 0:00:01]}  Re4 {[%clk 0:01:46]} 25. Bb3 {[%clk 0:00:01]}  f4 {[%clk 0:01:46]} 26. Bh4 {[%clk 0:00:01]}  h6 {[%clk 0:01:43]} 27. Be7 {[%clk 0:00:01]}  Rxe7 {[%clk 0:01:42]} 0-1


[Site "https://www.chess.com"]

[Event "Titled Tuesday Blitz February 22 Late 2022"]
[White "Sailer, Mike"]
[Black "Liang, Jason"]
[WhiteFideId "2012901"]
[BlackFideId "30940303"]
[WhiteElo "2109"]
[BlackElo "1976"]
[Result "0-1"]
[Round "04"]
[TimeControl "180+1"]
[Date "2022.02.23"]
[WhiteClock "0:01:02"]
[BlackClock "0:01:36"]

1. d4 {[%clk 0:03:00]}  d5 {[%clk 0:02:59]} 2. Nf3 {[%clk 0:02:58]}  Nc6 {[%clk 0:02:59]} 3. Bf4 {[%clk 0:02:58]}  Bf5 {[%clk 0:02:58]} 4. e3 {[%clk 0:02:59]}  e6 {[%clk 0:02:58]} 5. Be2 {[%clk 0:02:57]}  Bd6 {[%clk 0:02:58]} 6. Bg3 {[%clk 0:02:53]}  Nge7 {[%clk 0:02:59]} 7. Nbd2 {[%clk 0:02:53]}  O-O {[%clk 0:02:59]} 8. Ne5 {[%clk 0:02:53]}  f6 {[%clk 0:02:53]} 9. Nxc6 {[%clk 0:02:53]}  bxc6 {[%clk 0:02:54]} 10. O-O {[%clk 0:02:50]}  e5 {[%clk 0:02:54]} 11. c4 {[%clk 0:02:48]}  exd4 {[%clk 0:02:43]} 12. exd4 {[%clk 0:02:48]}  Rb8 {[%clk 0:02:44]} 13. b3 {[%clk 0:02:42]}  Bxg3 {[%clk 0:02:41]} 14. hxg3 {[%clk 0:02:40]}  Bg6 {[%clk 0:02:42]} 15. Rc1 {[%clk 0:02:37]}  Nf5 {[%clk 0:02:41]} 16. Nf3 {[%clk 0:02:33]}  Bh5 {[%clk 0:02:41]} 17. cxd5 {[%clk 0:02:29]}  cxd5 {[%clk 0:02:42]} 18. Qc2 {[%clk 0:02:14]}  Bxf3 {[%clk 0:02:38]} 19. Bxf3 {[%clk 0:02:14]}  Nxd4 {[%clk 0:02:38]} 20. Qxc7 {[%clk 0:02:14]}  Nxf3+ {[%clk 0:02:38]} 21. gxf3 {[%clk 0:02:14]}  Rf7 {[%clk 0:02:18]} 22. Qxd8+ {[%clk 0:02:12]}  Rxd8 {[%clk 0:02:18]} 23. Rfd1 {[%clk 0:02:10]}  d4 {[%clk 0:02:18]} 24. Rd3 {[%clk 0:02:11]}  Rfd7 {[%clk 0:02:18]} 25. Rc4 {[%clk 0:02:06]}  Kf7 {[%clk 0:02:18]} 26. Kf1 {[%clk 0:02:06]}  Ke6 {[%clk 0:02:18]} 27. Ke2 {[%clk 0:02:07]}  g5 {[%clk 0:02:19]} 28. Rc6+ {[%clk 0:02:04]}  Rd6 {[%clk 0:02:18]} 29. Rc7 {[%clk 0:02:00]}  R8d7 {[%clk 0:02:14]} 30. Rc8 {[%clk 0:02:00]}  Rd8 {[%clk 0:02:09]} 31. Rc7 {[%clk 0:02:00]}  R6d7 {[%clk 0:02:08]} 32. Rc6+ {[%clk 0:02:00]}  Kf7 {[%clk 0:02:07]} 33. b4 {[%clk 0:01:50]}  h5 {[%clk 0:02:07]} 34. a4 {[%clk 0:01:49]}  h4 {[%clk 0:02:01]} 35. gxh4 {[%clk 0:01:43]}  gxh4 {[%clk 0:02:02]} 36. Rc5 {[%clk 0:01:41]}  Rh8 {[%clk 0:02:00]} 37. Kf1 {[%clk 0:01:39]}  h3 {[%clk 0:01:54]} 38. Kg1 {[%clk 0:01:40]}  Re7 {[%clk 0:01:43]} 39. Kh2 {[%clk 0:01:19]}  Re2 {[%clk 0:01:42]} 40. Rxd4 {[%clk 0:01:06]}  Rxf2+ {[%clk 0:01:42]} 41. Kg3 {[%clk 0:01:07]}  Rg2+ {[%clk 0:01:37]} 42. Kf4 {[%clk 0:01:06]}  h2 {[%clk 0:01:35]} 43. Rc7+ {[%clk 0:01:05]}  Kg6 {[%clk 0:01:35]} 44. Rdd7 {[%clk 0:01:02]}  h1=Q {[%clk 0:01:34]} 45. Rg7+ {[%clk 0:01:02]}  Kh6 {[%clk 0:01:35]} 46. Rh7+ {[%clk 0:01:01]}  Rxh7 {[%clk 0:01:35]} 47. Rxh7+ {[%clk 0:01:02]}  Kxh7 {[%clk 0:01:36]} 0-1


[Site "https://www.chess.com"]